[Event "Queens Festival Final-B 2022"]
[Site "Tornelo"]
[Date "2022.06.25"]
[Round "8.2"]
[White "Mammadova, Aysel"]
[Black "Scarsi, Anna Laura"]
[Result "0-1"]
[ECO "B22"]
[WhiteElo "1893"]
[BlackElo "1867"]
[Annotator "NA RC"]
[PlyCount "170"]
[EventDate "2022.06.24"]
[EventType "tourn"]
[EventCountry "NET"]
[SourceTitle "playchess.com"]
[Source "ChessBase"]
[SourceQuality "1"]
[TimeControl "180+2"]

1. e4 {[%emt 0:00:02]} c5 {[%emt 0:00:05]} 2. c3 {[%emt 0:00:02]} d5 {[%emt 0:00:02]} 3. exd5 {[%emt 0:00:02]} Qxd5 {[%emt 0:00:00]} 4. d4 {[%emt 0:00:03]} e6 {[%emt 0:00:01]} 5. Nf3 {[%emt 0:00:01]} Nf6 {[%emt 0:00:03]} 6. Be2 {[%emt 0:00:03]} Nc6 {[%emt 0:00:02]} 7. O-O {[%emt 0:00:02]} Be7 {[%emt 0:00:02]} 8. Be3 {[%emt 0:00:02]} cxd4 {[%emt 0:00:02]} 9. Nxd4 {[%emt 0:00:02]} Nxd4 {[%emt 0:00:03]} 10. Bxd4 {[%emt 0:00:02]} O-O {[%emt 0:00:05]} 11. Nd2 {[%emt 0:00:04]} e5 {[%emt 0:00:20]} 12. Be3 {[%emt 0:00:03]} Bf5 {[%emt 0:00:08]} 13. Qa4 {[%emt 0:00:05]} a6 {[%emt 0:00:14]} 14. c4 {[%emt 0:00:15]} Qd7 {[%emt 0:00:06]} 15. Qb3 {[%emt 0:00:02]} Rfd8 {[%emt 0:00:08]} 16. Rfd1 {[%emt 0:00:02]} Rab8 {[%emt 0:00:12]} 17. Nf3 {[%emt 0:00:18]} Qe6 {[%emt 0:00:04]} 18. Ng5 {[%emt 0:00:07]} Qc6 {[%emt 0:00:08]} 19. Bb6 {[%emt 0:00:10]} Rxd1+ {[%emt 0:00:04]} 20. Rxd1 {[%emt 0:00:03]} h6 {[%emt 0:00:04]} 21. Nf3 {[%emt 0:00:02]} Bd6 {[%emt 0:00:08]} 22. Be3 {[%emt 0:00:10]} b5 {[%emt 0:00:08]} 23. c5 {[%emt 0:00:03]} Bc7 {[%emt 0:00:05]} 24. Ne1 {[%emt 0:00:14]} Be6 {[%emt 0:00:05]} 25. Qc2 {[%emt 0:00:05]} Nd5 {[%emt 0:00:05]} 26. Bf3 {[%emt 0:00:03]} Nxe3 {[%emt 0:00:04]} 27. fxe3 {[%emt 0:00:12]} Qe8 {[%emt 0:00:02]} 28. b4 {[%emt 0:00:03]} Bc4 {[%emt 0:00:03]} 29. Be4 {[%emt 0:00:05]} Qe6 {[%emt 0:00:03]} 30. Rd2 {[%emt 0:00:09]} g6 {[%emt 0:00:04]} 31. Nf3 {[%emt 0:00:04]} f5 {[%emt 0:00:02]} 32. Bd3 {[%emt 0:00:11]} Bxd3 {[%emt 0:00:06]} 33. Qxd3 {[%emt 0:00:09]} Rd8 {[%emt 0:00:04]} 34. Qe2 {[%emt 0:00:08]} Rd5 {[%emt 0:00:07]} 35. e4 {[%emt 0:00:05]} Rxd2 {[%emt 0:00:05]} 36. Qxd2 {[%emt 0:00:05]} fxe4 {[%emt 0:00:06]} 37. Ne1 {[%emt 0:00:03]} Qc4 {[%emt 0:00:06]} 38. Qxh6 {[%emt 0:00:04]} Qd4+ {[%emt 0:00:02]} 39. Kf1 {[%emt 0:00:05]} Qc4+ {[%emt 0:00:04]} 40. Kf2 {[%emt 0:00:03]} Qxa2+ {[%emt 0:00:02]} 41. Kg1 {[%emt 0:00:06]} Qf7 {[%emt 0:00:02]} 42. Qe3 {[%emt 0:00:02]} Qd5 {[%emt 0:00:07]} 43. h3 {[%emt 0:00:04]} Qd4 {[%emt 0:00:01]} 44. Kf2 {[%emt 0:00:03]} Kf7 {[%emt 0:00:03]} 45. Nc2 {[%emt 0:00:03]} Qxe3+ {[%emt 0:00:03]} 46. Kxe3 {[%emt 0:00:02]} Ke6 {[%emt 0:00:03]} 47. Kxe4 {[%emt 0:00:02]} a5 {[%emt 0:00:01]} 48. bxa5 {[%emt 0:00:03]} Bxa5 {[%emt 0:00:02]} 49. Ne3 {[%emt 0:00:02]} b4 {[%emt 0:00:06]} 50. Nc4 {[%emt 0:00:02]} b3 {[%emt 0:00:08]} 51. Kd3 {[%emt 0:00:09]} Bb4 {[%emt 0:00:03]} 52. Ne3 {[%emt 0:00:06]} Bxc5 {[%emt 0:00:03]} 53. Nd1 {[%emt 0:00:05]} Bd4 {[%emt 0:00:03]} 54. g4 {[%emt 0:00:04]} Kf6 {[%emt 0:00:05]} 55. h4 {[%emt 0:00:03]} Ke6 {[%emt 0:00:11]} 56. h5 {[%emt 0:00:02]} gxh5 {[%emt 0:00:05]} 57. gxh5 {[%emt 0:00:02]} Kf6 {[%emt 0:00:01]} 58. Nc3 {[%emt 0:00:07]} Kg5 {[%emt 0:00:06]} 59. Ne4+ {[%emt 0:00:06]} Kxh5 {[%emt 0:00:01]} 60. Nd2 {[%emt 0:00:01]} b2 {[%emt 0:00:03]} 61. Kc2 {[%emt 0:00:03]} Kg4 {[%emt 0:00:02]} 62. Nc4 {[%emt 0:00:02]} Kf3 {[%emt 0:00:05]} 63. Nd2+ {[%emt 0:00:05]} Ke2 {[%emt 0:00:02]} 64. Ne4 {[%emt 0:00:02]} Ke3 {[%emt 0:00:04]} 65. Nd6 {[%emt 0:00:02]} Kf3 {[%emt 0:00:04]} 66. Nf5 {[%emt 0:00:03]} Kf4 {[%emt 0:00:05]} 67. Nxd4 {[%emt 0:00:03]} exd4 {[%emt 0:00:02]} 68. Kxb2 {[%emt 0:00:02]} Ke3 {[%emt 0:00:01]} 69. Kc1 {[%emt 0:00:03]} Ke2 {[%emt 0:00:01]} 70. Kc2 {[%emt 0:00:01]} d3+ {[%emt 0:00:00]} 71. Kc3 {[%emt 0:00:02]} d2 {[%emt 0:00:00]} 72. Kb3 {[%emt 0:00:03]} d1=Q+ {[%emt 0:00:00]} 73. Kc4 {[%emt 0:00:04]} Qd3+ {[%emt 0:00:01]} 74. Kc5 {[%emt 0:00:02]} Ke3 {[%emt 0:00:00]} 75. Kc6 {[%emt 0:00:02]} Ke4 {[%emt 0:00:01]} 76. Kc7 {[%emt 0:00:02]} Qd5 {[%emt 0:00:01]} 77. Kc8 {[%emt 0:00:02]} Ke5 {[%emt 0:00:00]} 78. Kb8 {[%emt 0:00:02]} Qc5 {[%emt 0:00:03]} 79. Kb7 {[%emt 0:00:02]} Kd6 {[%emt 0:00:01]} 80. Ka8 {[%emt 0:00:02]} Kd7 {[%emt 0:00:05]} 81. Kb8 {[%emt 0:00:02]} Kd8 {[%emt 0:00:06]} 82. Kb7 {[%emt 0:00:02]} Qd6 {[%emt 0:00:02]} 83. Ka7 {[%emt 0:00:03]} Qb4 {[%emt 0:00:03]} 84. Ka6 {[%emt 0:00:02]} Kc7 {[%emt 0:00:01]} 85. Ka7 {[%emt 0:00:02]} Qb7# {[%emt 0:00:02]} 0-1

[Event "Queens Festival Final-B 2022"]
[Site "Tornelo"]
[Date "2022.06.25"]
[Round "8.3"]
[White "Bian, Erin"]
[Black "Shohradowa, Lala"]
[Result "0-1"]
[ECO "C11"]
[WhiteElo "1811"]
[BlackElo "1856"]
[Annotator "NA RC"]
[PlyCount "82"]
[EventDate "2022.06.24"]
[EventType "tourn"]
[EventCountry "NET"]
[SourceTitle "playchess.com"]
[Source "ChessBase"]
[SourceQuality "1"]
[TimeControl "180+2"]

1. e4 {[%emt 0:00:02]} e6 {[%emt 0:00:04]} 2. d4 {[%emt 0:00:02]} d5 {[%emt 0:00:01]} 3. Nc3 {[%emt 0:00:01]} Nf6 {[%emt 0:00:03]} 4. e5 {[%emt 0:00:01]} Nfd7 {[%emt 0:00:01]} 5. f4 {[%emt 0:00:04]} c5 {[%emt 0:00:02]} 6. Nf3 {[%emt 0:00:02]} Nc6 {[%emt 0:00:01]} 7. Be3 {[%emt 0:00:02]} cxd4 {[%emt 0:00:04]} 8. Nxd4 {[%emt 0:00:04]} Bc5 {[%emt 0:00:01]} 9. Be2 {[%emt 0:00:48]} O-O {[%emt 0:00:11]} 10. O-O {[%emt 0:00:02]} a6 {[%emt 0:00:06]} 11. Qd2 {[%emt 0:00:02]} Nxd4 {[%emt 0:00:05]} 12. Bxd4 {[%emt 0:00:01]} Qb6 {[%emt 0:00:02]} 13. Bxc5 {[%emt 0:00:05]} Nxc5 {[%emt 0:00:03]} 14. Kh1 {[%emt 0:00:04]} Bd7 {[%emt 0:00:04]} 15. f5 {[%emt 0:00:02]} Qc7 {[%emt 0:00:06]} 16. Qf4 {[%emt 0:00:11]} f6 {[%emt 0:00:19]} 17. fxe6 {[%emt 0:00:14]} Nxe6 {[%emt 0:00:09]} 18. Nxd5 {[%emt 0:00:14]} Nxf4 {[%emt 0:00:02]} 19. Nxc7 {[%emt 0:00:02]} Nxe2 {[%emt 0:00:03]} 20. Nxa8 {[%emt 0:00:01]} Rxa8 {[%emt 0:00:03]} 21. exf6 {[%emt 0:00:05]} Bc6 {[%emt 0:00:20]} 22. fxg7 {[%emt 0:00:10]} Kxg7 {[%emt 0:00:04]} 23. Rad1 {[%emt 0:00:04]} Re8 {[%emt 0:00:04]} 24. c3 {[%emt 0:00:15]} Re6 {[%emt 0:00:02]} 25. Rde1 {[%emt 0:00:13]} Bb5 {[%emt 0:00:06]} 26. b3 {[%emt 0:00:23]} Bd3 {[%emt 0:00:11]} 27. c4 {[%emt 0:00:09]} Rg6 {[%emt 0:00:11]} 28. Rf3 {[%emt 0:00:04]} Re6 {[%emt 0:00:32]} 29. Rxd3 {[%emt 0:00:04]} Rf6 {[%emt 0:00:10]} 30. Rf3 {[%emt 0:00:03]} Re6 {[%emt 0:00:08]} 31. Ref1 {[%emt 0:00:05]} Kg6 {[%emt 0:00:04]} 32. h4 {[%emt 0:00:04]} Re4 {[%emt 0:00:02]} 33. g3 {[%emt 0:00:04]} Nd4 {[%emt 0:00:11]} 34. Rf6+ {[%emt 0:00:01]} Kh5 {[%emt 0:00:02]} 35. R6f5+ {[%emt 0:00:05]} Nxf5 {[%emt 0:00:03]} 36. Rxf5+ {[%emt 0:00:01]} Kg4 {[%emt 0:00:02]} 37. Rf7 {[%emt 0:00:01]} Kxg3 {[%emt 0:00:02]} 38. Rg7+ {[%emt 0:00:08]} Kh3 {[%emt 0:00:03]} 39. h5 {[%emt 0:00:06]} Re1+ {[%emt 0:00:04]} 40. Rg1 {[%emt 0:00:02]} Re2 {[%emt 0:00:02]} 41. a3 {[%emt 0:00:03]} Rh2# {[%emt 0:00:02]} 0-1

[Event "Queens Festival Final-B 2022"]
[Site "Tornelo"]
[Date "2022.06.25"]
[Round "8.4"]
[White "Pang, Ashley"]
[Black "Deak-Sala, Emilia"]
[Result "1-0"]
[ECO "A08"]
[WhiteElo "1967"]
[BlackElo "1883"]
[Annotator "NA RC"]
[PlyCount "99"]
[EventDate "2022.06.24"]
[EventType "tourn"]
[EventCountry "NET"]
[SourceTitle "playchess.com"]
[Source "ChessBase"]
[SourceQuality "1"]
[TimeControl "180+2"]

1. g3 {[%emt 0:00:02]} d5 {[%emt 0:00:07]} 2. Bg2 {[%emt 0:00:03]} c5 {[%emt 0:00:05]} 3. Nf3 {[%emt 0:00:02]} Nc6 {[%emt 0:00:01]} 4. d3 {[%emt 0:00:05]} Nf6 {[%emt 0:00:01]} 5. Nbd2 {[%emt 0:00:01]} g6 {[%emt 0:00:11]} 6. O-O {[%emt 0:00:03]} Bg7 {[%emt 0:00:01]} 7. Re1 {[%emt 0:00:04]} O-O {[%emt 0:00:04]} 8. e4 {[%emt 0:00:03]} d4 {[%emt 0:00:07]} 9. a4 {[%emt 0:00:27]} e5 {[%emt 0:00:09]} 10. Nc4 {[%emt 0:00:10]} Ne8 {[%emt 0:00:12]} 11. b3 {[%emt 0:00:14]} Nd6 {[%emt 0:00:15]} 12. Ba3 {[%emt 0:00:14]} b6 {[%emt 0:00:04]} 13. Bc1 {[%emt 0:00:22]} a6 {[%emt 0:00:04]} 14. Bd2 {[%emt 0:00:08]} Rb8 {[%emt 0:00:02]} 15. a5 {[%emt 0:00:12]} b5 {[%emt 0:00:11]} 16. Nb6 {[%emt 0:00:05]} Bd7 {[%emt 0:00:12]} 17. Qc1 {[%emt 0:00:20]} Nc8 {[%emt 0:00:09]} 18. Nd5 {[%emt 0:00:05]} Be6 {[%emt 0:00:27]} 19. Ng5 {[%emt 0:00:06]} Bxd5 {[%emt 0:00:07]} 20. exd5 {[%emt 0:00:03]} N6e7 {[%emt 0:00:04]} 21. c4 {[%emt 0:00:10]} Nd6 {[%emt 0:00:11]} 22. f4 {[%emt 0:00:18]} exf4 {[%emt 0:00:14]} 23. Bxf4 {[%emt 0:00:02]} bxc4 {[%emt 0:00:13]} 24. bxc4 {[%emt 0:00:04]} Nef5 {[%emt 0:00:05]} 25. Qa3 {[%emt 0:00:19]} Rc8 {[%emt 0:00:14]} 26. Rab1 {[%emt 0:00:02]} h6 {[%emt 0:00:02]} 27. Ne4 {[%emt 0:00:02]} Nxe4 {[%emt 0:00:03]} 28. dxe4 {[%emt 0:00:02]} Nd6 {[%emt 0:00:02]} 29. Rec1 {[%emt 0:00:03]} g5 {[%emt 0:00:02]} 30. Bd2 {[%emt 0:00:03]} Re8 {[%emt 0:00:02]} 31. Rb6 {[%emt 0:00:06]} Nxe4 {[%emt 0:00:03]} 32. Bxe4 {[%emt 0:00:01]} Rxe4 {[%emt 0:00:02]} 33. Rxa6 {[%emt 0:00:03]} Re2 {[%emt 0:00:02]} 34. Qd3 {[%emt 0:00:01]} Qe8 {[%emt 0:00:04]} 35. Rd6 {[%emt 0:00:03]} Re4 {[%emt 0:00:05]} 36. Rb6 {[%emt 0:00:02]} Ra8 {[%emt 0:00:03]} 37. Ra1 {[%emt 0:00:01]} Re7 {[%emt 0:00:02]} 38. a6 {[%emt 0:00:02]} Rea7 {[%emt 0:00:02]} 39. d6 {[%emt 0:00:01]} Qc8 {[%emt 0:00:02]} 40. Ba5 {[%emt 0:00:02]} Rxa6 {[%emt 0:00:01]} 41. Rxa6 {[%emt 0:00:01]} Rxa6 {[%emt 0:00:02]} 42. Qe4 {[%emt 0:00:02]} Rxd6 {[%emt 0:00:03]} 43. Qe7 {[%emt 0:00:03]} Rd8 {[%emt 0:00:04]} 44. Bxd8 {[%emt 0:00:02]} Qf5 {[%emt 0:00:02]} 45. Qe8+ {[%emt 0:00:02]} Kh7 {[%emt 0:00:03]} 46. Rf1 {[%emt 0:00:01]} Qd3 {[%emt 0:00:03]} 47. Qxf7 {[%emt 0:00:01]} Qe3+ {[%emt 0:00:01]} 48. Qf2 {[%emt 0:00:02]} Qe4 {[%emt 0:00:02]} 49. Qf5+ {[%emt 0:00:01]} Qxf5 {[%emt 0:00:03]} 50. Rxf5 {[%emt 0:00:00]} 1-0

[Event "Queens Festival Final-B 2022"]
[Site "Tornelo"]
[Date "2022.06.25"]
[Round "8.5"]
[White "Francis, Onkemetse"]
[Black "Mariroh, Fariha"]
[Result "0-1"]
[ECO "B23"]
[WhiteElo "1777"]
[BlackElo "1839"]
[Annotator "NA RC"]
[PlyCount "40"]
[EventDate "2022.06.24"]
[EventType "tourn"]
[EventCountry "NET"]
[SourceTitle "playchess.com"]
[Source "ChessBase"]
[SourceQuality "1"]
[TimeControl "180+2"]

1. e4 {[%emt 0:00:02]} c5 {[%emt 0:00:04]} 2. Nc3 {[%emt 0:00:04]} d6 {[%emt 0:00:02]} 3. f4 {[%emt 0:00:02]} g6 {[%emt 0:00:01]} 4. Nf3 {[%emt 0:00:02]} Bg7 {[%emt 0:00:01]} 5. Bc4 {[%emt 0:00:03]} e6 {[%emt 0:00:03]} 6. d3 {[%emt 0:00:04]} Ne7 {[%emt 0:00:01]} 7. Bb3 {[%emt 0:00:02]} Nbc6 {[%emt 0:00:07]} 8. O-O {[%emt 0:00:03]} O-O {[%emt 0:00:05]} 9. Be3 {[%emt 0:00:33]} Na5 {[%emt 0:00:10]} 10. Qe1 {[%emt 0:00:04]} Nxb3 {[%emt 0:00:02]} 11. axb3 {[%emt 0:00:02]} Nc6 {[%emt 0:00:15]} 12. Qf2 {[%emt 0:00:32]} Nb4 {[%emt 0:00:05]} 13. h3 {[%emt 0:00:16]} b6 {[%emt 0:00:02]} 14. g4 {[%emt 0:00:04]} f5 {[%emt 0:00:02]} 15. exf5 {[%emt 0:00:16]} exf5 {[%emt 0:00:01]} 16. gxf5 {[%emt 0:00:17]} Bxf5 {[%emt 0:00:02]} 17. Kh2 {[%emt 0:00:02]} d5 {[%emt 0:00:07]} 18. Bc1 {[%emt 0:00:08]} Qd7 {[%emt 0:00:08]} 19. Qg3 {[%emt 0:00:03]} Nxc2 {[%emt 0:00:04]} 20. Ra3 {[%emt 0:00:08]} Bxd3 {[%emt 0:00:02]} 0-1

[Event "Queens Festival Final-B 2022"]
[Site "Tornelo"]
[Date "2022.06.25"]
[Round "9.1"]
[White "Mariroh, Fariha"]
[Black "Masoumi, Sahar"]
[Result "0-1"]
[ECO "B40"]
[WhiteElo "1839"]
[BlackElo "2004"]
[Annotator "NA RC"]
[PlyCount "94"]
[EventDate "2022.06.24"]
[EventType "tourn"]
[EventCountry "NET"]
[SourceTitle "playchess.com"]
[Source "ChessBase"]
[SourceQuality "1"]
[TimeControl "180+2"]

1. e4 {[%emt 0:00:02]} c5 {[%emt 0:00:04]} 2. Nf3 {[%emt 0:00:01]} Nc6 {[%emt 0:00:02]} 3. d4 {[%emt 0:00:01]} cxd4 {[%emt 0:00:01]} 4. Nxd4 {[%emt 0:00:01]} Nf6 {[%emt 0:00:01]} 5. Nc3 {[%emt 0:00:01]} e6 {[%emt 0:00:01]} 6. Nxc6 {[%emt 0:00:01]} bxc6 {[%emt 0:00:02]} 7. Bd3 {[%emt 0:00:01]} d5 {[%emt 0:00:01]} 8. O-O {[%emt 0:00:01]} Be7 {[%emt 0:00:02]} 9. Bf4 {[%emt 0:00:05]} O-O {[%emt 0:00:05]} 10. Qf3 {[%emt 0:00:08]} c5 {[%emt 0:00:09]} 11. e5 {[%emt 0:00:27]} Nd7 {[%emt 0:00:13]} 12. Qg3 {[%emt 0:00:09]} Re8 {[%emt 0:00:11]} 13. Bh6 {[%emt 0:00:42]} Bf8 {[%emt 0:00:02]} 14. Rad1 {[%emt 0:00:13]} Qc7 {[%emt 0:00:09]} 15. Nb5 {[%emt 0:00:09]} Qb6 {[%emt 0:00:29]} 16. Nd6 {[%emt 0:00:04]} Rd8 {[%emt 0:00:12]} 17. Qf4 {[%emt 0:00:14]} Nxe5 {[%emt 0:00:07]} 18. Nxc8 {[%emt 0:00:14]} Raxc8 {[%emt 0:00:02]} 19. Qxe5 {[%emt 0:00:02]} gxh6 {[%emt 0:00:02]} 20. f4 {[%emt 0:00:08]} c4+ {[%emt 0:00:04]} 21. Kh1 {[%emt 0:00:07]} cxd3 {[%emt 0:00:01]} 22. Rxd3 {[%emt 0:00:01]} f5 {[%emt 0:00:25]} 23. Qf6 {[%emt 0:00:22]} Rd7 {[%emt 0:00:15]} 24. Rff3 {[%emt 0:00:05]} Rxc2 {[%emt 0:00:23]} 25. Rg3+ {[%emt 0:00:12]} Bg7 {[%emt 0:00:05]} 26. Rd1 {[%emt 0:00:09]} Rf7 {[%emt 0:00:18]} 27. Qxh6 {[%emt 0:00:06]} Qc6 {[%emt 0:00:15]} 28. Qg5 {[%emt 0:00:04]} Rc1 {[%emt 0:00:04]} 29. Rgd3 {[%emt 0:00:05]} Rxd1+ {[%emt 0:00:02]} 30. Rxd1 {[%emt 0:00:02]} Qc2 {[%emt 0:00:01]} 31. Re1 {[%emt 0:00:02]} Qxb2 {[%emt 0:00:02]} 32. h3 {[%emt 0:00:03]} Qf6 {[%emt 0:00:01]} 33. Qg3 {[%emt 0:00:02]} Rc7 {[%emt 0:00:03]} 34. Qb3 {[%emt 0:00:02]} Kf7 {[%emt 0:00:02]} 35. Qb8 {[%emt 0:00:01]} Qc3 {[%emt 0:00:05]} 36. Rf1 {[%emt 0:00:03]} Re7 {[%emt 0:00:02]} 37. Qb5 {[%emt 0:00:03]} Qc4 {[%emt 0:00:01]} 38. Qb1 {[%emt 0:00:02]} Rc7 {[%emt 0:00:03]} 39. Re1 {[%emt 0:00:01]} Qc2 {[%emt 0:00:02]} 40. Qb4 {[%emt 0:00:02]} Qc3 {[%emt 0:00:02]} 41. Qb1 {[%emt 0:00:02]} a5 {[%emt 0:00:02]} 42. Qd1 {[%emt 0:00:02]} a4 {[%emt 0:00:02]} 43. Qh5+ {[%emt 0:00:01]} Ke7 {[%emt 0:00:02]} 44. Qxh7 {[%emt 0:00:01]} Qxe1+ {[%emt 0:00:02]} 45. Kh2 {[%emt 0:00:02]} Kf8 {[%emt 0:00:02]} 46. Qg6 {[%emt 0:00:01]} Rc1 {[%emt 0:00:02]} 47. h4 {[%emt 0:00:03]} Qxh4# {[%emt 0:00:02]} 0-1

[Event "Queens Festival Final-B 2022"]
[Site "Tornelo"]
[Date "2022.06.25"]
[Round "9.3"]
[White "Shohradowa, Lala"]
[Black "Pang, Ashley"]
[Result "0-1"]
[ECO "E72"]
[WhiteElo "1856"]
[BlackElo "1967"]
[Annotator "NA RC"]
[PlyCount "106"]
[EventDate "2022.06.24"]
[EventType "tourn"]
[EventCountry "NET"]
[SourceTitle "playchess.com"]
[Source "ChessBase"]
[SourceQuality "1"]
[TimeControl "180+2"]

1. d4 {[%emt 0:00:02]} Nf6 {[%emt 0:00:04]} 2. c4 {[%emt 0:00:02]} g6 {[%emt 0:00:01]} 3. Nc3 {[%emt 0:00:03]} Bg7 {[%emt 0:00:01]} 4. g3 {[%emt 0:00:01]} O-O {[%emt 0:00:02]} 5. Bg2 {[%emt 0:00:01]} d6 {[%emt 0:00:02]} 6. e4 {[%emt 0:00:02]} Nc6 {[%emt 0:00:02]} 7. Nge2 {[%emt 0:00:01]} a6 {[%emt 0:00:08]} 8. O-O {[%emt 0:00:03]} Rb8 {[%emt 0:00:04]} 9. a3 {[%emt 0:00:04]} Na5 {[%emt 0:00:06]} 10. Qa4 {[%emt 0:00:18]} c5 {[%emt 0:00:13]} 11. dxc5 {[%emt 0:00:03]} dxc5 {[%emt 0:00:02]} 12. Bf4 {[%emt 0:00:02]} Bd7 {[%emt 0:00:13]} 13. Qc2 {[%emt 0:00:03]} Rc8 {[%emt 0:00:09]} 14. Nd5 {[%emt 0:00:03]} Nxd5 {[%emt 0:00:11]} 15. cxd5 {[%emt 0:00:08]} Qb6 {[%emt 0:00:07]} 16. Rab1 {[%emt 0:00:09]} Bb5 {[%emt 0:00:17]} 17. Rfd1 {[%emt 0:00:13]} Rfd8 {[%emt 0:00:16]} 18. Bh3 {[%emt 0:00:04]} e6 {[%emt 0:00:08]} 19. dxe6 {[%emt 0:00:04]} fxe6 {[%emt 0:00:03]} 20. Rxd8+ {[%emt 0:00:04]} Rxd8 {[%emt 0:00:04]} 21. Rd1 {[%emt 0:00:06]} Bc4 {[%emt 0:00:15]} 22. Rxd8+ {[%emt 0:00:06]} Qxd8 {[%emt 0:00:05]} 23. b4 {[%emt 0:00:03]} cxb4 {[%emt 0:00:23]} 24. axb4 {[%emt 0:00:05]} Bb3 {[%emt 0:00:06]} 25. Bc7 {[%emt 0:00:48]} Qc8 {[%emt 0:00:22]} 26. Qc5 {[%emt 0:00:13]} Nc6 {[%emt 0:00:12]} 27. Bd6 {[%emt 0:00:05]} Qd7 {[%emt 0:00:06]} 28. Nf4 {[%emt 0:00:05]} b6 {[%emt 0:00:03]} 29. Qe3 {[%emt 0:00:17]} Qxd6 {[%emt 0:00:06]} 30. Qxb3 {[%emt 0:00:02]} Nxb4 {[%emt 0:00:04]} 31. Nxe6 {[%emt 0:00:10]} Kh8 {[%emt 0:00:04]} 32. Ng5 {[%emt 0:00:03]} Qf8 {[%emt 0:00:03]} 33. Nf7+ {[%emt 0:00:04]} Kg8 {[%emt 0:00:01]} 34. Nd6+ {[%emt 0:00:04]} Kh8 {[%emt 0:00:03]} 35. Qxb4 {[%emt 0:00:02]} Be5 {[%emt 0:00:03]} 36. Qxb6 {[%emt 0:00:04]} Qxd6 {[%emt 0:00:02]} 37. Qxd6 {[%emt 0:00:05]} Bxd6 {[%emt 0:00:00]} 38. Bd7 {[%emt 0:00:02]} Kg7 {[%emt 0:00:02]} 39. f4 {[%emt 0:00:04]} a5 {[%emt 0:00:03]} 40. Kf2 {[%emt 0:00:02]} Bc5+ {[%emt 0:00:02]} 41. Kf3 {[%emt 0:00:02]} h5 {[%emt 0:00:02]} 42. e5 {[%emt 0:00:03]} Kf7 {[%emt 0:00:01]} 43. h3 {[%emt 0:00:02]} Bg1 {[%emt 0:00:02]} 44. g4 {[%emt 0:00:02]} hxg4+ {[%emt 0:00:03]} 45. hxg4 {[%emt 0:00:02]} Bc5 {[%emt 0:00:01]} 46. f5 {[%emt 0:00:02]} gxf5 {[%emt 0:00:01]} 47. gxf5 {[%emt 0:00:02]} Bd4 {[%emt 0:00:02]} 48. Ke4 {[%emt 0:00:02]} Bc3 {[%emt 0:00:02]} 49. Kd5 {[%emt 0:00:04]} Bb4 {[%emt 0:00:01]} 50. Be6+ {[%emt 0:00:02]} Ke7 {[%emt 0:00:01]} 51. f6+ {[%emt 0:00:02]} Ke8 {[%emt 0:00:02]} 52. Bg4 {[%emt 0:00:09]} a4 {[%emt 0:00:02]} 53. e6 {[%emt 0:00:05]} a3 {[%emt 0:00:04]} 0-1

[Event "Queens Festival Final-B 2022"]
[Site "Tornelo"]
[Date "2022.06.25"]
[Round "9.4"]
[White "Scarsi, Anna Laura"]
[Black "Bian, Erin"]
[Result "1-0"]
[ECO "C54"]
[WhiteElo "1867"]
[BlackElo "1811"]
[Annotator "NA RC"]
[PlyCount "117"]
[EventDate "2022.06.24"]
[EventType "tourn"]
[EventCountry "NET"]
[SourceTitle "playchess.com"]
[Source "ChessBase"]
[SourceQuality "1"]
[TimeControl "180+2"]

1. e4 {[%emt 0:00:02]} e5 {[%emt 0:00:03]} 2. Nf3 {[%emt 0:00:03]} Nc6 {[%emt 0:00:01]} 3. Bc4 {[%emt 0:00:01]} Bc5 {[%emt 0:00:01]} 4. c3 {[%emt 0:00:03]} Nf6 {[%emt 0:00:01]} 5. d3 {[%emt 0:00:02]} O-O {[%emt 0:00:01]} 6. O-O {[%emt 0:00:02]} d5 {[%emt 0:00:01]} 7. exd5 {[%emt 0:00:03]} Nxd5 {[%emt 0:00:01]} 8. Re1 {[%emt 0:00:04]} Bg4 {[%emt 0:00:01]} 9. h3 {[%emt 0:00:04]} Bh5 {[%emt 0:00:01]} 10. Nbd2 {[%emt 0:00:30]} Nb6 {[%emt 0:00:05]} 11. Ne4 {[%emt 0:00:13]} Be7 {[%emt 0:00:43]} 12. Bb3 {[%emt 0:00:13]} a5 {[%emt 0:00:06]} 13. Ng3 {[%emt 0:00:02]} Bg6 {[%emt 0:00:04]} 14. Nxe5 {[%emt 0:00:04]} Nxe5 {[%emt 0:00:02]} 15. Rxe5 {[%emt 0:00:00]} Bf6 {[%emt 0:00:09]} 16. Re3 {[%emt 0:00:04]} a4 {[%emt 0:00:05]} 17. Bc2 {[%emt 0:00:02]} Qd7 {[%emt 0:00:07]} 18. d4 {[%emt 0:00:04]} Nc4 {[%emt 0:00:07]} 19. Re1 {[%emt 0:00:05]} Rfe8 {[%emt 0:00:07]} 20. Bxg6 {[%emt 0:00:04]} hxg6 {[%emt 0:00:02]} 21. Ne4 {[%emt 0:00:08]} Qd5 {[%emt 0:00:14]} 22. Qe2 {[%emt 0:00:08]} Nd6 {[%emt 0:00:14]} 23. Nxf6+ {[%emt 0:00:08]} gxf6 {[%emt 0:00:03]} 24. Be3 {[%emt 0:00:04]} Nf5 {[%emt 0:00:07]} 25. Qf1 {[%emt 0:00:13]} a3 {[%emt 0:00:12]} 26. b3 {[%emt 0:00:04]} Qa5 {[%emt 0:00:02]} 27. c4 {[%emt 0:00:05]} Rad8 {[%emt 0:00:15]} 28. Rad1 {[%emt 0:00:07]} Qb4 {[%emt 0:00:19]} 29. Qd3 {[%emt 0:00:06]} c5 {[%emt 0:00:04]} 30. d5 {[%emt 0:00:04]} Nd4 {[%emt 0:00:01]} 31. Bd2 {[%emt 0:00:11]} Qb6 {[%emt 0:00:04]} 32. Bc3 {[%emt 0:00:04]} Nf5 {[%emt 0:00:08]} 33. Qd2 {[%emt 0:00:11]} Qd6 {[%emt 0:00:06]} 34. Rxe8+ {[%emt 0:00:09]} Rxe8 {[%emt 0:00:02]} 35. Re1 {[%emt 0:00:01]} Rxe1+ {[%emt 0:00:06]} 36. Qxe1 {[%emt 0:00:00]} Nd4 {[%emt 0:00:02]} 37. Bxd4 {[%emt 0:00:04]} cxd4 {[%emt 0:00:02]} 38. Qe8+ {[%emt 0:00:05]} Kg7 {[%emt 0:00:01]} 39. Qe4 {[%emt 0:00:03]} Qc5 {[%emt 0:00:07]} 40. Qd3 {[%emt 0:00:05]} b6 {[%emt 0:00:02]} 41. Kf1 {[%emt 0:00:02]} b5 {[%emt 0:00:05]} 42. Ke2 {[%emt 0:00:07]} bxc4 {[%emt 0:00:01]} 43. Qxc4 {[%emt 0:00:02]} Qb6 {[%emt 0:00:05]} 44. Kd3 {[%emt 0:00:02]} Qc7 {[%emt 0:00:07]} 45. Qxc7 {[%emt 0:00:03]} f5 {[%emt 0:00:04]} 46. d6 {[%emt 0:00:02]} f4 {[%emt 0:00:01]} 47. d7 {[%emt 0:00:00]} f3 {[%emt 0:00:01]} 48. gxf3 {[%emt 0:00:01]} f6 {[%emt 0:00:02]} 49. d8=Q+ {[%emt 0:00:01]} Kh6 {[%emt 0:00:00]} 50. Qh8+ {[%emt 0:00:02]} Kg5 {[%emt 0:00:01]} 51. Qc5+ {[%emt 0:00:01]} f5 {[%emt 0:00:02]} 52. Qe7+ {[%emt 0:00:02]} Kf4 {[%emt 0:00:01]} 53. Qh6+ {[%emt 0:00:02]} Kxf3 {[%emt 0:00:01]} 54. Qeg5 {[%emt 0:00:04]} Kxf2 {[%emt 0:00:01]} 55. Qf4+ {[%emt 0:00:02]} Ke1 {[%emt 0:00:01]} 56. Qd2+ {[%emt 0:00:03]} Kf1 {[%emt 0:00:01]} 57. Qhf4+ {[%emt 0:00:02]} Kg1 {[%emt 0:00:02]} 58. Qdf2+ {[%emt 0:00:03]} Kh1 {[%emt 0:00:01]} 59. Q4h2# {[%emt 0:00:02]} 1-0